[Event "Klubbmästerskap 2025 Hängrond"]
[Site "Linköping, Sweden"]
[Date "2025.02.18"]
[Round "2.1"]
[White "Nyberg, Peter"]
[Black "Grundel, Sam"]
[Result "0-1"]
[TimeControl "90 min + 30 sec/move"]
[WhiteElo "1972"]
[BlackElo "2019"]

1. c4 {[%clk 01:30:57]} {[%emt 00:00:02]} c6 {[%clk 01:30:32]} {[%emt
00:00:28]} 2. e4 {[%clk 01:31:08]} {[%emt 00:00:19]} d5 {[%clk 01:30:53]}
{[%emt 00:00:08]} 3. exd5 {[%clk 01:30:41]} {[%emt 00:00:57]} cxd5 {[%clk
01:31:16]} {[%emt 00:00:08]} 4. cxd5 {[%clk 01:30:53]} {[%emt 00:00:18]} Nf6
{[%clk 01:31:06]} {[%emt 00:00:40]} 5. Nc3 {[%clk 01:31:11]} {[%emt 00:00:12]}
g6 {[%clk 01:29:56]} {[%emt 00:01:40]} 6. Bc4 {[%clk 01:28:31]} {[%emt
00:03:10]} Bg7 {[%clk 01:28:33]} {[%emt 00:01:53]} 7. Nge2 {[%clk 01:28:12]}
{[%emt 00:00:49]} O-O {[%clk 01:28:21]} {[%emt 00:00:42]} 8. O-O {[%clk
01:28:00]} {[%emt 00:00:42]} Na6 {[%clk 01:26:04]} {[%emt 00:02:47]} 9. d3
{[%clk 01:01:22]} {[%emt 00:27:08]} Nc7 {[%clk 01:24:03]} {[%emt 00:02:31]} 10.
Nf4 {[%clk 01:00:08]} {[%emt 00:01:44]} b6 {[%clk 01:17:18]} {[%emt 00:07:15]}
11. Re1 {[%clk 00:51:44]} {[%emt 00:08:54]} Bb7 {[%clk 01:15:26]} {[%emt
00:02:22]} 12. Qb3 {[%clk 00:43:07]} {[%emt 00:09:07]} Qd7 {[%clk 01:01:34]}
{[%emt 00:14:21]} 13. Bd2 {[%clk 00:41:22]} {[%emt 00:02:15]} Rfd8 {[%clk
00:58:14]} {[%emt 00:03:50]} 14. Rad1 {[%clk 00:36:47]} {[%emt 00:05:05]} Nfxd5
{[%clk 00:44:16]} {[%emt 00:14:28]} 15. Ncxd5 {[%clk 00:35:46]} {[%emt
00:01:31]} Nxd5 {[%clk 00:42:21]} {[%emt 00:02:25]} 16. Nxd5 {[%clk 00:35:55]}
{[%emt 00:00:22]} Bxd5 {[%clk 00:42:44]} {[%emt 00:00:07]} 17. Bc3 {[%clk
00:35:10]} {[%emt 00:01:14]} Bxc3 {[%clk 00:37:36]} {[%emt 00:05:38]} 18. bxc3
{[%clk 00:34:34]} {[%emt 00:01:06]} Bxc4 {[%clk 00:37:41]} {[%emt 00:00:25]} 19.
Qxc4 {[%clk 00:34:20]} {[%emt 00:00:44]} e6 {[%clk 00:37:37]} {[%emt 00:00:34]}
20. d4 {[%clk 00:29:44]} {[%emt 00:05:06]} Rac8 {[%clk 00:33:42]} {[%emt
00:04:24]} 21. Qd3 {[%clk 00:27:35]} {[%emt 00:02:39]} Qa4 {[%clk 00:30:17]}
{[%emt 00:03:55]} 22. Qd2 {[%clk 00:23:44]} {[%emt 00:04:22]} Rd5 {[%clk
00:27:43]} {[%emt 00:03:03]} 23. Re3 {[%clk 00:22:25]} {[%emt 00:01:50]} Ra5
{[%clk 00:26:43]} {[%emt 00:01:29]} 24. Rh3 {[%clk 00:16:44]} {[%emt 00:06:10]}
h5 {[%clk 00:24:15]} {[%emt 00:02:59]} 25. Re1 {[%clk 00:13:59]} {[%emt
00:03:16]} Qxa2 {[%clk 00:19:00]} {[%emt 00:05:45]} 26. Qe3 {[%clk 00:14:08]}
{[%emt 00:00:20]} Rf5 {[%clk 00:15:30]} {[%emt 00:04:01]} 27. f4 {[%clk
00:13:01]} {[%emt 00:01:37]} a5 {[%clk 00:15:00]} {[%emt 00:01:01]} 28. Rf3
{[%clk 00:12:25]} {[%emt 00:01:05]} b5 {[%clk 00:14:28]} {[%emt 00:01:02]} 29.
h3 {[%clk 00:11:01]} {[%emt 00:01:54]} h4 {[%clk 00:14:09]} {[%emt 00:00:49]}
30. g4 {[%clk 00:09:50]} {[%emt 00:01:41]} hxg3 {[%clk 00:12:49]} {[%emt
00:01:51]} 31. Rxg3 {[%clk 00:09:59]} {[%emt 00:00:21]} b4 {[%clk 00:12:07]}
{[%emt 00:01:12]} 32. cxb4 {[%clk 00:10:11]} {[%emt 00:00:18]} axb4 {[%clk
00:12:31]} {[%emt 00:00:06]} 33. Re2 {[%clk 00:06:28]} {[%emt 00:04:12]} Qd5
{[%clk 00:10:25]} {[%emt 00:02:37]} 34. Qd2 {[%clk 00:06:04]} {[%emt 00:00:54]}
b3 {[%clk 00:08:45]} {[%emt 00:02:10]} 35. Re5 {[%clk 00:04:23]} {[%emt
00:02:11]} Rxe5 {[%clk 00:07:01]} {[%emt 00:02:14]} 36. fxe5 {[%clk 00:04:52]}
Rc2 {[%clk 00:07:06]} {[%emt 00:00:25]} 37. Qb4 {[%clk 00:02:30]} {[%emt
00:02:51]} b2 {[%clk 00:05:11]} {[%emt 00:02:26]} 0-1

[Event "Klubbmästerskap 2025 Hängrond"]
[Site "Linköping, Sweden"]
[Date "2025.02.18"]
[Round "2.2"]
[White "Westerberg, Hampus"]
[Black "Nagy, Mate 2009"]
[Result "1/2-1/2"]
[TimeControl "90 min + 30 sec/move"]
[WhiteElo "1851"]
[BlackElo "1917"]

1. e4 {[%clk 01:30:52]} {[%emt 00:00:03]} c5 {[%clk 01:30:57]} {[%emt
00:00:08]} 2. c3 {[%clk 01:31:17]} {[%emt 00:00:05]} Nf6 {[%clk 01:31:16]}
{[%emt 00:00:10]} 3. e5 {[%clk 01:31:20]} {[%emt 00:00:28]} Nd5 {[%clk
01:31:38]} {[%emt 00:00:08]} 4. Nf3 {[%clk 01:31:38]} {[%emt 00:00:12]} Nc6
{[%clk 01:31:28]} {[%emt 00:00:40]} 5. Bc4 {[%clk 01:31:53]} {[%emt 00:00:16]}
e6 {[%clk 01:30:10]} {[%emt 00:01:48]} 6. O-O {[%clk 01:25:24]} {[%emt
00:06:58]} d6 {[%clk 01:29:30]} {[%emt 00:01:10]} 7. d4 {[%clk 01:22:37]}
{[%emt 00:03:18]} cxd4 {[%clk 01:29:45]} {[%emt 00:00:15]} 8. cxd4 {[%clk
01:22:51]} {[%emt 00:00:16]} Be7 {[%clk 01:22:04]} {[%emt 00:08:10]} 9. exd6
{[%clk 01:15:20]} {[%emt 00:08:00]} Qxd6 {[%clk 01:20:00]} {[%emt 00:02:35]} 10.
Nc3 {[%clk 01:15:06]} {[%emt 00:00:45]} a6 {[%clk 01:16:27]} {[%emt 00:04:03]}
11. Re1 {[%clk 01:09:34]} {[%emt 00:06:02]} O-O {[%clk 01:14:00]} {[%emt
00:02:56]} 12. Bb3 {[%clk 01:04:12]} {[%emt 00:05:52]} Rd8 {[%clk 01:11:13]}
{[%emt 00:03:17]} 13. Nxd5 {[%clk 01:00:22]} {[%emt 00:04:21]} exd5 {[%clk
01:11:34]} {[%emt 00:00:09]} 14. Be3 {[%clk 01:00:17]} {[%emt 00:00:35]} Bf6
{[%clk 01:04:16]} {[%emt 00:07:48]} 15. h3 {[%clk 00:59:16]} {[%emt 00:01:29]}
Bf5 {[%clk 00:58:05]} {[%emt 00:06:43]} 16. Qd2 {[%clk 00:55:03]} {[%emt
00:04:43]} h6 {[%clk 00:44:55]} {[%emt 00:13:40]} 17. a3 {[%clk 00:41:46]}
{[%emt 00:13:47]} a5 {[%clk 00:43:21]} {[%emt 00:02:03]} 18. Bf4 {[%clk
00:40:58]} {[%emt 00:01:18]} Qd7 {[%clk 00:43:41]} {[%emt 00:00:11]} 19. Ba4
{[%clk 00:33:22]} {[%emt 00:08:05]} Be4 {[%clk 00:41:44]} {[%emt 00:02:27]} 20.
Ne5 {[%clk 00:30:53]} {[%emt 00:03:00]} Bxe5 {[%clk 00:31:00]} {[%emt
00:11:14]} 21. dxe5 {[%clk 00:29:06]} {[%emt 00:02:16]} Qe6 {[%clk 00:25:45]}
{[%emt 00:05:45]} 22. f3 {[%clk 00:25:40]} {[%emt 00:03:56]} Bh7 {[%clk
00:25:12]} {[%emt 00:01:03]} 23. Rac1 {[%clk 00:25:41]} {[%emt 00:00:29]} Ne7
{[%clk 00:21:34]} {[%emt 00:04:07]} 24. Kh1 {[%clk 00:23:06]} {[%emt 00:03:06]}
d4 {[%clk 00:19:57]} {[%emt 00:02:08]} 25. Rc7 {[%clk 00:19:43]} {[%emt
00:03:53]} Nd5 {[%clk 00:16:03]} {[%emt 00:04:24]} 26. Rxb7 {[%clk 00:16:10]}
{[%emt 00:04:04]} Qa6 {[%clk 00:16:13]} {[%emt 00:00:19]} 27. Rd7 {[%clk
00:15:04]} {[%emt 00:01:36]} Qc4 {[%clk 00:14:06]} {[%emt 00:02:37]} 28. Rxd8+
{[%clk 00:12:49]} {[%emt 00:02:44]} Rxd8 {[%clk 00:14:32]} {[%emt 00:00:04]} 29.
Qxa5 {[%clk 00:12:29]} {[%emt 00:00:50]} Qc8 {[%clk 00:13:30]} {[%emt
00:01:31]} 30. Bg3 {[%clk 00:10:02]} {[%emt 00:02:57]} Ne3 {[%clk 00:10:19]}
{[%emt 00:03:41]} 31. Bb3 {[%clk 00:07:56]} {[%emt 00:02:37]} Bf5 {[%clk
00:08:27]} {[%emt 00:02:22]} 32. Bf2 {[%clk 00:06:01]} {[%emt 00:02:25]} Nc2
{[%clk 00:05:52]} {[%emt 00:03:05]} 33. Rd1 {[%clk 00:05:23]} {[%emt 00:01:08]}
Rd7 {[%clk 00:02:44]} {[%emt 00:03:38]} 34. Bxc2 {[%clk 00:03:22]} {[%emt
00:02:31]} Qxc2 {[%clk 00:03:08]} {[%emt 00:00:06]} 35. Rxd4 {[%clk 00:01:43]}
{[%emt 00:02:09]} Qc1+ {[%clk 00:02:21]} {[%emt 00:01:17]} 36. Kh2 {[%clk
00:01:07]} {[%emt 00:01:05]} Rxd4 {[%clk 00:02:14]} {[%emt 00:00:37]} 37. Bxd4
{[%clk 00:00:46]} {[%emt 00:00:51]} Qf4+ {[%clk 00:02:33]} {[%emt 00:00:11]} 38.
Kh1 {[%clk 00:01:06]} {[%emt 00:00:10]} Qxd4 {[%clk 00:02:54]} {[%emt
00:00:09]} 39. b4 {[%clk 00:01:07]} {[%emt 00:00:29]} Qd2 {[%clk 00:02:55]}
{[%emt 00:00:29]} 40. Qc5 {[%clk 00:01:07]} {[%emt 00:00:30]} 1/2-1/2

[Event "Klubbmästerskap 2025 Hängrond"]
[Site "Linköping, Sweden"]
[Date "2025.02.18"]
[Round "2.3"]
[White "Halvarsson, Peter"]
[Black "Ståhlberg, Adam"]
[Result "1/2-1/2"]
[TimeControl "90 min + 30 sec/move"]
[WhiteElo "1927"]
[BlackElo "1944"]

1. e4 {[%clk 01:29:19]} {[%emt 00:01:40]} c6 {[%clk 01:30:46]} {[%emt
00:00:15]} 2. d4 {[%clk 01:29:13]} {[%emt 00:00:37]} d5 {[%clk 01:30:11]}
{[%emt 00:01:05]} 3. Nd2 {[%clk 01:29:32]} {[%emt 00:00:10]} dxe4 {[%clk
01:30:25]} {[%emt 00:00:17]} 4. Nxe4 {[%clk 01:29:55]} {[%emt 00:00:06]} Nf6
{[%clk 01:30:48]} {[%emt 00:00:07]} 5. Nxf6+ {[%clk 01:30:17]} {[%emt
00:00:08]} exf6 {[%clk 01:31:13]} {[%emt 00:00:05]} 6. c3 {[%clk 01:30:39]}
{[%emt 00:00:08]} Bd6 {[%clk 01:31:28]} {[%emt 00:00:16]} 7. Bd3 {[%clk
01:31:03]} {[%emt 00:00:06]} Qc7 {[%clk 01:29:49]} {[%emt 00:02:10]} 8. Ne2
{[%clk 01:30:33]} {[%emt 00:00:59]} Bg4 {[%clk 01:03:56]} {[%emt 00:26:22]} 9.
h3 {[%clk 01:30:00]} {[%emt 00:01:03]} Be6 {[%clk 01:04:13]} {[%emt 00:00:14]}
10. Qc2 {[%clk 01:29:18]} {[%emt 00:01:12]} h5 {[%clk 00:40:42]} {[%emt
00:24:00]} 11. Be3 {[%clk 01:28:25]} {[%emt 00:01:23]} Nd7 {[%clk 00:35:56]}
{[%emt 00:05:17]} 12. c4 {[%clk 01:27:03]} {[%emt 00:01:52]} Bb4+ {[%clk
00:35:56]} {[%emt 00:00:30]} 13. Nc3 {[%clk 01:26:27]} {[%emt 00:01:06]} h4
{[%clk 00:29:24]} {[%emt 00:07:02]} 14. a3 {[%clk 01:23:37]} {[%emt 00:03:20]}
Qa5 {[%clk 00:28:29]} {[%emt 00:01:25]} 15. O-O {[%clk 00:42:38]} {[%emt
00:41:29]} Bxc3 {[%clk 00:28:27]} {[%emt 00:00:32]} 16. b4 {[%clk 00:42:24]}
{[%emt 00:00:44]} Qh5 {[%clk 00:27:50]} {[%emt 00:01:06]} 17. Qxc3 {[%clk
00:42:06]} {[%emt 00:00:48]} O-O {[%clk 00:22:38]} {[%emt 00:05:42]} 18. f4
{[%clk 00:36:31]} {[%emt 00:06:05]} Bf5 {[%clk 00:18:20]} {[%emt 00:04:47]} 19.
Rae1 {[%clk 00:30:46]} {[%emt 00:06:16]} Bxd3 {[%clk 00:16:05]} {[%emt
00:02:45]} 20. Qxd3 {[%clk 00:31:12]} {[%emt 00:00:04]} a5 {[%clk 00:16:25]}
{[%emt 00:00:09]} 21. Rf2 {[%clk 00:26:12]} {[%emt 00:05:29]} axb4 {[%clk
00:16:01]} {[%emt 00:00:54]} 22. axb4 {[%clk 00:26:41]} {[%emt 00:00:02]} f5
{[%clk 00:13:37]} {[%emt 00:02:54]} 23. Rb2 {[%clk 00:25:23]} {[%emt 00:01:47]}
Rfd8 {[%clk 00:13:37]} {[%emt 00:00:30]} 24. Bf2 {[%clk 00:23:39]} {[%emt
00:02:14]} Nf8 {[%clk 00:12:59]} {[%emt 00:01:09]} 25. Re5 {[%clk 00:22:36]}
{[%emt 00:01:33]} Ra1+ {[%clk 00:11:41]} {[%emt 00:01:48]} 26. Rb1 {[%clk
00:21:18]} {[%emt 00:01:48]} Rxb1+ {[%clk 00:11:49]} {[%emt 00:00:22]} 27. Qxb1
{[%clk 00:21:47]} {[%emt 00:00:02]} Ne6 {[%clk 00:08:58]} {[%emt 00:03:20]} 28.
Rxf5 {[%clk 00:06:58]} {[%emt 00:15:19]} Qg6 {[%clk 00:08:53]} {[%emt
00:00:34]} 29. Qe4 {[%clk 00:06:43]} {[%emt 00:00:46]} Nc7 {[%clk 00:01:05]}
{[%emt 00:08:18]} 30. Re5 {[%clk 00:05:34]} {[%emt 00:01:39]} Qxe4 {[%clk
00:01:20]} {[%emt 00:00:15]} 31. Rxe4 {[%emt 00:00:02]} Kf8 {[%clk 00:01:11]}
{[%emt 00:00:38]} 32. Bxh4 {[%clk 00:05:25]} {[%emt 00:01:09]} f6 {[%clk
00:01:34]} {[%emt 00:00:07]} 33. Bf2 {[%clk 00:03:29]} {[%emt 00:02:26]} b5
{[%clk 00:01:50]} {[%emt 00:00:14]} 34. cxb5 {[%clk 00:02:32]} {[%emt
00:01:27]} cxb5 {[%clk 00:02:10]} {[%emt 00:00:10]} 35. f5 {[%clk 00:02:30]}
{[%emt 00:00:32]} Nd5 {[%clk 00:01:49]} {[%emt 00:00:51]} 36. Be1 {[%clk
00:02:39]} {[%emt 00:00:21]} Ne7 {[%clk 00:01:58]} {[%emt 00:00:21]} 37. g4
{[%clk 00:02:52]} {[%emt 00:00:17]} Rc8 {[%clk 00:01:13]} {[%emt 00:01:15]} 38.
Bg3 {[%clk 00:02:36]} {[%emt 00:00:46]} Rd8 {[%clk 00:01:08]} {[%emt 00:00:35]}
39. Bc7 {[%clk 00:02:10]} {[%emt 00:00:57]} Rd7 {[%clk 00:01:16]} {[%emt
00:00:22]} 40. Bb6 {[%clk 00:02:32]} {[%emt 00:00:08]} Nc6 {[%clk 00:01:22]}
{[%emt 00:00:24]} 41. Bc5+ {[%clk 00:02:56]} {[%emt 00:00:07]} Kf7 {[%clk
00:01:45]} {[%emt 00:00:06]} 42. Kf2 {[%clk 00:03:03]} {[%emt 00:00:23]} g6
{[%clk 00:01:48]} {[%emt 00:00:27]} 43. fxg6+ {[%clk 00:02:42]} {[%emt
00:00:52]} Kxg6 {[%clk 00:02:12]} {[%emt 00:00:06]} 44. Ke3 {[%clk 00:02:42]}
{[%emt 00:00:30]} Rh7 {[%clk 00:02:33]} {[%emt 00:00:08]} 45. Re6 {[%clk
00:02:07]} {[%emt 00:01:05]} Rxh3+ {[%clk 00:02:49]} {[%emt 00:00:15]} 46. Kf4
{[%clk 00:02:26]} {[%emt 00:00:09]} Nd8 {[%clk 00:02:36]} {[%emt 00:00:43]} 47.
Rb6 {[%clk 00:01:46]} {[%emt 00:01:10]} Kf7 {[%clk 00:02:01]} {[%emt 00:01:06]}
48. Rxb5 {[%clk 00:00:51]} {[%emt 00:01:25]} Ne6+ {[%clk 00:01:20]} {[%emt
00:01:11]} 49. Ke4 {[%clk 00:01:17]} {[%emt 00:00:04]} Rg3 {[%clk 00:01:10]}
{[%emt 00:00:41]} 50. d5 {[%clk 00:01:08]} {[%emt 00:00:39]} Ng5+ {[%clk
00:01:14]} {[%emt 00:01:02]} 51. Kd4 {[%clk 00:01:34]} Rxg4+ {[%clk 00:00:59]}
{[%emt 00:00:12]} 52. Kd3 {[%clk 00:02:03]} {[%emt 00:00:01]} Rg3+ {[%clk
00:00:57]} {[%emt 00:00:32]} 53. Ke2 {[%clk 00:02:02]} {[%emt 00:00:30]} Rg2+
{[%clk 00:01:03]} {[%emt 00:00:24]} 54. Kf1 {[%clk 00:01:15]} {[%emt 00:01:18]}
Rc2 {[%clk 00:00:49]} {[%emt 00:00:45]} 55. Rb7+ {[%clk 00:01:03]} {[%emt
00:00:42]} Ke8 {[%clk 00:01:12]} {[%emt 00:00:06]} 56. d6 {[%clk 00:00:58]}
{[%emt 00:00:34]} Rd2 {[%clk 00:01:17]} {[%emt 00:00:26]} 57. b5 {[%clk
00:00:36]} {[%emt 00:00:52]} Rd5 {[%clk 00:00:55]} {[%emt 00:00:51]} 58. Re7+
{[%clk 00:00:47]} {[%emt 00:00:19]} Kd8 {[%clk 00:00:55]} {[%emt 00:00:31]} 59.
Bb6+ {[%clk 00:01:13]} {[%emt 00:00:04]} Kc8 {[%clk 00:01:19]} {[%emt
00:00:06]} 60. Rc7+ {[%clk 00:01:35]} {[%emt 00:00:08]} Kb8 {[%clk 00:01:35]}
{[%emt 00:00:14]} 61. Ba7+ {[%clk 00:00:34]} {[%emt 00:01:31]} Ka8 {[%clk
00:01:56]} {[%emt 00:00:09]} 62. d7 {[%clk 00:00:34]} {[%emt 00:00:31]} Ne6
{[%clk 00:01:37]} {[%emt 00:00:49]} 63. b6 {[%clk 00:00:35]} {[%emt 00:00:29]}
f5 {[%clk 00:01:43]} {[%emt 00:00:24]} 64. Rc6 {[%clk 00:00:44]} {[%emt
00:00:21]} Rxd7 {[%clk 00:01:23]} {[%emt 00:00:49]} 65. Rxe6 {[%clk 00:01:10]}
{[%emt 00:00:04]} Kb7 {[%clk 00:01:42]} {[%emt 00:00:11]} 66. Rf6 {[%clk
00:01:25]} {[%emt 00:00:15]} Rd5 {[%clk 00:01:08]} {[%emt 00:01:05]} 67. Kf2
{[%clk 00:01:47]} {[%emt 00:00:08]} Rd8 {[%clk 00:00:39]} {[%emt 00:00:59]} 68.
Rxf5 {[%clk 00:01:41]} {[%emt 00:00:36]} Re8 {[%clk 00:01:04]} {[%emt
00:00:05]} 69. Kf3 {[%clk 00:01:42]} {[%emt 00:00:28]} Re1 {[%clk 00:01:09]}
{[%emt 00:00:25]} 70. Rf7+ {[%clk 00:01:30]} {[%emt 00:00:42]} Ka8 {[%clk
00:01:02]} {[%emt 00:00:37]} 71. Rf8+ {[%clk 00:01:50]} {[%emt 00:00:11]} Kb7
{[%clk 00:01:27]} {[%emt 00:00:05]} 72. Rb8+ {[%emt 00:01:15]} Ka6 {[%clk
00:01:04]} {[%emt 00:00:53]} 73. Rd8 {[%clk 00:00:40]} {[%emt 00:00:53]} Kb7
{[%clk 00:01:07]} {[%emt 00:00:29]} 74. Kf4 {[%clk 00:00:58]} {[%emt 00:00:12]}
Re2 {[%clk 00:00:51]} {[%emt 00:00:45]} 75. Kf5 {[%clk 00:01:18]} {[%emt
00:00:11]} Re1 {[%clk 00:00:52]} {[%emt 00:00:29]} 76. Kf6 {[%clk 00:01:41]}
{[%emt 00:00:06]} Rf1+ {[%clk 00:00:49]} {[%emt 00:00:33]} 77. Ke5 {[%clk
00:01:36]} {[%emt 00:00:35]} Re1+ {[%clk 00:01:07]} {[%emt 00:00:13]} 78. Kf4
{[%clk 00:02:05]} {[%emt 00:00:01]} Re7 {[%clk 00:00:47]} {[%emt 00:00:49]} 79.
Rd5 {[%clk 00:01:59]} {[%emt 00:00:36]} Re1 {[%clk 00:00:59]} {[%emt 00:00:18]}
80. Re5 {[%clk 00:01:56]} {[%emt 00:00:32]} Rf1+ {[%clk 00:00:54]} {[%emt
00:00:36]} 81. Ke4 {[%clk 00:02:23]} {[%emt 00:00:03]} Rd1 {[%clk 00:01:04]}
{[%emt 00:00:19]} 82. Rd5 {[%clk 00:02:28]} {[%emt 00:00:25]} Re1+ {[%clk
00:01:15]} {[%emt 00:00:20]} 83. Kd4 {[%clk 00:02:45]} {[%emt 00:00:13]} Re7
{[%clk 00:00:38]} {[%emt 00:01:07]} 84. Kc5 {[%clk 00:02:44]} {[%emt 00:00:30]}
Rh7 {[%clk 00:00:51]} {[%emt 00:00:17]} 85. Re5 {[%clk 00:02:18]} {[%emt
00:00:56]} Rh1 {[%clk 00:00:49]} {[%emt 00:00:32]} 86. Re7+ {[%clk 00:01:35]}
{[%emt 00:01:13]} Ka8 {[%clk 00:00:43]} {[%emt 00:00:37]} 87. Re6 {[%clk
00:00:53]} {[%emt 00:01:11]} Kb7 {[%clk 00:00:55]} {[%emt 00:00:18]} 88. Kd6
{[%clk 00:00:42]} {[%emt 00:00:41]} Rd1+ {[%clk 00:01:12]} {[%emt 00:00:13]} 89.
Ke7 {[%clk 00:01:05]} {[%emt 00:00:07]} Rh1 {[%clk 00:01:17]} {[%emt 00:00:25]}
90. Kd8 {[%clk 00:01:14]} {[%emt 00:00:21]} Rd1+ {[%clk 00:01:34]} {[%emt
00:00:13]} 91. Ke8 {[%clk 00:01:31]} {[%emt 00:00:13]} Rh1 {[%clk 00:00:57]}
{[%emt 00:01:06]} 92. Kd7 {[%clk 00:00:36]} {[%emt 00:01:26]} Rd1 {[%clk
00:01:06]} {[%emt 00:00:21]} 93. Rd6 {[%clk 00:00:35]} {[%emt 00:00:31]} Rh1
{[%clk 00:01:20]} {[%emt 00:00:15]} 94. Rd5 {[%clk 00:00:32]} {[%emt 00:00:34]}
Rh7 {[%clk 00:00:35]} {[%emt 00:01:15]} 95. Kd6 {[%clk 00:00:46]} {[%emt
00:00:15]} Rh1 {[%clk 00:00:53]} {[%emt 00:00:12]} 96. Rd4 {[%clk 00:00:37]}
{[%emt 00:00:40]} Rh6+ {[%clk 00:00:38]} {[%emt 00:00:45]} 97. Kc5 {[%clk
00:01:00]} {[%emt 00:00:07]} Rh7 {[%clk 00:00:59]} {[%emt 00:00:09]} 98. Rd5
{[%clk 00:00:40]} {[%emt 00:00:50]} Rg7 {[%clk 00:01:13]} {[%emt 00:00:16]} 99.
Bb8 {[%clk 00:00:33]} {[%emt 00:00:38]} Kxb8 {[%clk 00:01:20]} {[%emt
00:00:23]} 100. Kc6 {[%clk 00:00:56]} {[%emt 00:00:06]} Rg8 {[%clk 00:01:04]}
{[%emt 00:00:47]} 101. Rd7 {[%clk 00:00:37]} {[%emt 00:00:49]} Rg6+ {[%clk
00:01:09]} {[%emt 00:00:25]} 102. Rd6 {[%clk 00:00:41]} {[%emt 00:00:26]} Rxd6+
{[%clk 00:00:45]} {[%emt 00:00:54]} 103. Kxd6 {[%clk 00:01:10]} {[%emt
00:00:01]} Kb7 {[%clk 00:01:02]} {[%emt 00:00:12]} 104. Kc5 {[%clk 00:01:39]}
{[%emt 00:00:02]} Kb8 {[%clk 00:00:41]} {[%emt 00:00:51]} 105. Kc6 {[%clk
00:02:04]} {[%emt 00:00:05]} Kc8 {[%clk 00:01:05]} {[%emt 00:00:06]} 106. b7+
{[%clk 00:02:23]} {[%emt 00:00:11]} Kb8 {[%clk 00:01:15]} {[%emt 00:00:20]} 107.
Kb6 {[%clk 00:02:49]} {[%emt 00:00:04]} 1/2-1/2